fUSD/lending_fUSD_20250502
["ID","MTS","AMOUNT","RATE_DAILY","PERIOD"]
[359642125,1746210633388,-556.00041878,0.00019739,2]
[359642127,1746210633397,-726.8,0.00019739,2]
[359642129,1746210633407,-450.0,0.00019739,2]
[359642131,1746210633416,-450.0,0.00019739,2]
[359642133,1746210633425,-450.0,0.00019739,2]
[359642135,1746210633435,-450.0,0.00019739,2]
[359642137,1746210633444,-450.0,0.00019739,2]
[359642139,1746210633453,-450.0,0.00019739,2]
[359642141,1746210633464,-450.0,0.00019739,2]
[359642143,1746210633474,-450.0,0.00019739,2]
[359642145,1746210633483,-450.0,0.00019739,2]
[359642147,1746210633493,-551.46,0.00019739,2]
[359642149,1746210633503,-450.0,0.00019739,2]
[359642151,1746210633516,-450.0,0.00019739,2]
[359642153,1746210633526,-450.0,0.00019739,2]
[359642155,1746210633535,-450.0,0.00019739,2]
[359642157,1746210633544,-450.0,0.00019739,2]
[359642159,1746210633555,-450.0,0.00019739,2]
[359642161,1746210633565,-450.0,0.00019739,2]
[359642163,1746210633575,-450.0,0.00019739,2]
[359642165,1746210633585,-450.0,0.00019739,2]
[359642167,1746210633595,-450.0,0.00019739,2]
[359642169,1746210633605,-450.0,0.00019739,2]
[359642171,1746210633614,-450.0,0.00019739,2]
[359642173,1746210633624,-450.0,0.00019739,2]
[359642175,1746210633633,-450.0,0.00019739,2]
[359642177,1746210633642,-1027.1,0.00019739,2]
[359642179,1746210633651,-511.13,0.00019739,2]
[359642181,1746210633661,-450.0,0.00019739,2]
[359642183,1746210633670,-450.0,0.00019739,2]
[359642185,1746210633680,-450.0,0.00019739,2]
[359642187,1746210633689,-450.0,0.00019739,2]
[359642188,1746210633699,-450.0,0.00019739,2]
[359642190,1746210633708,-450.0,0.00019739,2]
[359642192,1746210633718,-462.66,0.00019739,2]
[359642194,1746210633727,-450.0,0.00019739,2]
[359642196,1746210633736,-450.0,0.00019739,2]
[359642198,1746210633746,-787.41,0.00019739,2]
[359642201,1746210633756,-450.0,0.00019739,2]
[359642203,1746210633766,-450.0,0.00019739,2]
[359642205,1746210633776,-450.0,0.00019739,2]
[359642207,1746210633786,-677.22,0.00019739,2]
[359642209,1746210633796,-528.51,0.00019739,2]
[359642211,1746210633806,-514.12293037,0.00019739,2]
[359642213,1746210633816,-450.0,0.00019739,2]
[359642215,1746210633826,-455.35,0.00019739,2]
[359642217,1746210633836,-450.0,0.00019739,2]
[359642219,1746210633846,-450.0,0.00019739,2]
[359642221,1746210633855,-450.0,0.00019739,2]
[359642223,1746210633865,-450.0,0.00019739,2]
[359642225,1746210633874,-450.0,0.00019739,2]
[359642227,1746210633884,-192.83804198,0.00019739,2]
[359642229,1746210633895,-450.0,0.00019739,2]
[359642231,1746210633904,-450.0,0.00019739,2]
[359642232,1746210633914,-450.0,0.00019739,2]
[359642235,1746210633923,-483.96,0.00019739,2]
[359642236,1746210633934,-450.0,0.00019739,2]
[359642237,1746210633944,-450.0,0.00019739,2]
[359642238,1746210633954,-450.0,0.00019739,2]
[359642239,1746210633964,-484.67,0.00019739,2]
[359642240,1746210633975,-450.0,0.00019739,2]
[359642241,1746210633985,-493.95,0.00019739,2]
[359642242,1746210633995,-450.0,0.00019739,2]
[359642243,1746210634005,-450.0,0.00019739,2]
[359642244,1746210634015,-536.26,0.00019739,2]
[359642245,1746210634025,-450.0,0.00019739,2]
[359642246,1746210634036,-450.0,0.00019739,2]
[359642247,1746210634046,-450.0,0.00019739,2]
[359642248,1746210634056,-450.0,0.00019739,2]
[359642249,1746210634066,-450.0,0.00019739,2]
[359642250,1746210634075,-450.0,0.00019739,2]
[359642251,1746210634085,-450.0,0.00019739,2]
[359642252,1746210634095,-450.0,0.00019739,2]
[359642253,1746210634104,-450.0,0.00019739,2]
[359642254,1746210634114,-450.0,0.00019739,2]
[359642255,1746210634123,-470.68,0.00019739,2]
[359642256,1746210634133,-450.0,0.00019739,2]
[359642258,1746210634143,-450.0,0.00019739,2]
[359642260,1746210634152,-450.0,0.00019739,2]
[359642262,1746210634162,-450.0,0.00019739,2]
[359642263,1746210634171,-450.0,0.00019739,2]
[359642264,1746210634180,-450.0,0.00019739,2]
[359642265,1746210634190,-450.0,0.00019739,2]
[359642266,1746210634200,-450.0,0.00019739,2]
[359642267,1746210634209,-450.0,0.00019739,2]
[359642268,1746210634219,-450.0,0.00019739,2]
[359642269,1746210634229,-450.0,0.00019739,2]
[359642270,1746210634238,-630.34,0.00019739,2]
[359642271,1746210634248,-661.01,0.00019739,2]
[359642272,1746210634258,-450.0,0.00019739,2]
[359642273,1746210634267,-552.3664922,0.00019739,2]
[359642274,1746210634277,-450.0,0.00019739,2]
[359642275,1746210634287,-450.0,0.00019739,2]
[359642276,1746210634296,-450.0,0.00019739,2]
[359642277,1746210634306,-460.71,0.00019739,2]
[359642278,1746210634315,-450.0,0.00019739,2]
[359642279,1746210634325,-450.0,0.00019739,2]
[359642280,1746210634336,-621.51481524,0.00019739,2]
[359642281,1746210634350,-1321.31999955,0.00019739,2]
[359642282,1746210634370,-450.0,0.00019738,2]
[359642283,1746210634380,-11.51518521,0.00019739,2]
[359642284,1746210634389,-450.0,0.00019739,2]
[359642285,1746210634399,-420.21949226,0.00019739,2]
[359642286,1746210634408,-450.0,0.00019739,2]
[359642287,1746210634418,-450.0,0.00019739,2]
[359642288,1746210634428,-450.0,0.00019739,2]
[359642289,1746210634438,-450.0,0.00019739,2]
[359642290,1746210634447,-450.0,0.00019739,2]
[359642291,1746210634457,-641.48,0.00019739,2]
[359642292,1746210634468,-450.0,0.00019739,2]
[359642293,1746210634478,-450.0,0.00019739,2]
[359642294,1746210634488,-450.0,0.00019739,2]
[359642295,1746210634497,-1562.21,0.00019739,2]
[359642296,1746210634506,-450.0,0.00019739,2]
[359642297,1746210634518,-839.21,0.00019739,2]
[359642298,1746210634528,-1785.04,0.00019739,2]
[359642299,1746210634537,-564.8,0.00019739,2]
[359642300,1746210634546,-450.0,0.00019739,2]
[359642301,1746210634557,-450.0,0.00019739,2]
[359642302,1746210634566,-450.0,0.00019739,2]
[359642303,1746210634574,-495.03,0.00019739,2]
[359642304,1746210634583,-841.22,0.00019739,2]
[359642305,1746210634592,-450.0,0.00019739,2]
[359642306,1746210634602,-89.37532253,0.00019739,2]
[359642307,1746210634699,150.0,0.0001948,2]
[359642308,1746210634785,150.0,0.00019499,2]
[359642311,1746210638310,-150.0,0.00019512,2]
[359642312,1746210638319,-150.0,0.0001952,2]
[359642313,1746210638328,-150.0,0.00019594,2]
[359642314,1746210638338,-150.0,0.0001961,2]
[359642315,1746210638347,-150.0,0.0001964,2]
[359642316,1746210638357,-150.0,0.00019655,2]
[359642317,1746210638366,-150.0,0.00019656,2]
[359642318,1746210638376,-150.0,0.00019661,2]
[359642319,1746210638387,-150.0,0.00019662,2]
[359642320,1746210638396,-129.81197628,0.00019689,2]
[359642321,1746210638407,-20.18802372,0.00019689,2]
[359642322,1746210638416,-150.0,0.00019736,2]
[359642323,1746210638425,-450.0,0.00019738,2]
[359642324,1746210638435,-354.74197628,0.00019738,2]
[359642325,1746210638447,-95.25802372,0.00019738,2]
[359642326,1746210638456,-504.24467747,0.00019739,2]
[359642327,1746210638466,-450.0,0.00019739,2]
[359642328,1746210638475,-270.94729881,0.00019739,2]
[359642415,1746210640535,-179.05270119,0.00019739,2]
[359642416,1746210640545,-450.0,0.00019739,2]
[359642417,1746210640554,-106.46148673,0.00019739,2]
[359642418,1746210640566,-343.53851327,0.00019739,2]
[359642419,1746210640575,-270.93953959,0.00019739,2]
[359642420,1746210640747,-388.37173998,0.00019738,2]
[359642421,1746210640802,-61.62826002,0.00019738,2]
[359642422,1746210640813,-179.06046041,0.00019739,2]
[359642423,1746210640822,-450.0,0.00019739,2]
[359642424,1746210640832,-450.0,0.00019739,2]
[359642425,1746210640842,-450.0,0.00019739,2]
[359642426,1746210640851,-450.0,0.00019739,2]
[359642427,1746210640865,-844.72,0.00019739,2]
[359642428,1746210640875,-450.0,0.00019739,2]
[359642429,1746210640884,-514.7867556,0.00019739,2]
[359642430,1746210640894,-450.0,0.00019739,2]
[359642431,1746210640904,-450.0,0.00019739,2]
[359642432,1746210640914,-852.71,0.00019739,2]
[359642433,1746210640923,-2583.21729586,0.00019739,2]
[359642441,1746210643473,-450.0,0.00019738,2]
[359642442,1746210643484,-391.23567221,0.00019739,2]
[359642443,1746210643575,-504.76511919,0.00019739,2]
[359642444,1746210643592,-644.41191274,0.00019739,2]
[359642445,1746210643603,-450.0,0.00019739,2]
[359642446,1746210643612,-450.0,0.00019739,2]
[359642447,1746210643621,-450.0,0.00019739,2]
[359642448,1746210643630,-450.0,0.00019739,2]
[359642449,1746210643639,-3140.54839587,0.00019739,2]
[359642450,1746210643651,-1614.85160413,0.00019739,2]
[359642451,1746210643660,-487.63,0.00019739,2]
[359642452,1746210643669,-450.0,0.00019739,2]
[359642453,1746210643678,-450.0,0.00019739,2]
[359642454,1746210643687,-589.43,0.00019739,2]
[359642455,1746210643696,-450.0,0.00019739,2]
[359642456,1746210643706,-4366.49,0.00019739,2]
[359642457,1746210643716,-450.0,0.00019739,2]
[359642458,1746210643725,-450.0,0.00019739,2]
[359642460,1746210643734,-450.0,0.00019739,2]
[359642461,1746210643743,-1094.69,0.00019739,2]
[359642462,1746210643753,-544.29,0.00019739,2]
[359642463,1746210643763,-494.31,0.00019739,2]
[359642464,1746210643772,-1006.23,0.00019739,2]
[359642465,1746210643782,-450.0,0.00019739,2]
[359642466,1746210643792,-450.0,0.00019739,2]
[359642467,1746210643801,-450.0,0.00019739,2]
[359642469,1746210643811,-1091.93,0.00019739,2]
[359642471,1746210643821,-602.84,0.00019739,2]
[359642472,1746210643830,-1051.48,0.00019739,2]
[359642473,1746210643840,-450.0,0.00019739,2]
[359642474,1746210643849,-450.0,0.00019739,2]
[359642475,1746210643858,-450.0,0.00019739,2]
[359642476,1746210643868,-461.55,0.00019739,2]
[359642477,1746210643878,-6565.67,0.00019739,2]
[359642478,1746210643887,-450.0,0.00019739,2]
[359642479,1746210643897,-450.0,0.00019739,2]
[359642480,1746210643907,-4693.33,0.00019739,2]
[359642481,1746210643916,-460.02,0.00019739,2]
[359642482,1746210643926,-500.75,0.00019739,2]
[359642483,1746210643993,-450.0,0.00019739,2]
[359642484,1746210644003,-509.23,0.00019739,2]
[359642485,1746210644012,-96106.92,0.00019739,2]
[359642486,1746210644022,-450.0,0.00019739,2]
[359642487,1746210644031,-68954.71557335,0.00019739,2]
[359642488,1746210646266,-541.727872,0.00019639,2]
[359642489,1746210646532,-478.97811715,0.00019639,2]
[359642490,1746210646544,-551.02000832,0.00019639,2]
[359642491,1746210646590,-1003.14636491,0.00019639,2]
[359642492,1746210646599,-450.0,0.00019738,2]
[359642493,1746210646610,-450.0,0.00019738,2]
[359642494,1746210646620,-1256.85363509,0.00019739,2]
[359642496,1746210696625,150.0,0.00019471,2]
[359642497,1746210696843,150.0,0.00019501,2]
[359642498,1746210696890,150.0,0.00019469,2]
[359642499,1746210696920,150.0,0.00019486,2]
[359642500,1746210697031,150.0,0.000195,2]
[359642501,1746210697075,63.66996431,0.00019497,2]
[359642502,1746210697097,86.33003569,0.00019497,2]
[359642503,1746210697228,150.0,0.00019491,2]
[359642504,1746210716315,-150.0,0.00019516,2]
[359642505,1746210716339,-134.19137649,0.00019528,2]
[359642506,1746210756833,150.0,0.00019487,2]
[359642507,1746210756923,150.0,0.00019456,2]
[359642508,1746210762905,9463.66996431,0.00018671,2]
[359642509,1746210762925,989.46003569,0.00018671,2]
[359642510,1746210794166,1000.0,0.00019451,2]
[359642511,1746210816966,150.0,0.00019492,2]
[359642512,1746210817107,150.0,0.00019452,2]
[359642513,1746210817297,150.0,0.0001949,2]
[359642514,1746210817359,150.0,0.0001948,2]
[359642515,1746210817502,150.0,0.00019484,2]
[359642516,1746210901238,250.0,0.00018755,7]
[359642517,1746210981839,1000.0,0.00019479,2]
[359642518,1746211261881,150.0,0.00019493,2]
[359642519,1746211261991,150.0,0.000195,2]
[359642520,1746211263261,150.0,0.00019482,2]
[359642521,1746211279485,310.0,0.00019432,2]
[359642522,1746211279507,46.8542,0.00019432,2]
[359642523,1746211373827,150.0,0.00019493,2]
[359642524,1746211381084,232.26517841,0.00019499,2]
[359642526,1746211390188,831.32,0.00016725,2]
[359642527,1746211390423,831.32,0.00018989,2]
[359642528,1746211440693,150.0,0.00019498,2]
[359642529,1746211441057,150.0,0.00019471,2]
[359642530,1746211441154,150.0,0.00019476,2]
[359642531,1746211441428,150.0,0.00019496,2]
[359642532,1746211482511,300.067256,0.00019407,2]
[359642533,1746211560951,150.0,0.00019477,2]
[359642534,1746211622841,1000.0,0.00018643,2]
[359642535,1746211807686,200.0,0.00018642,2]
[359642547,1746211831503,-200.0,0.00019505,2]
[359642548,1746211831513,-250.0,0.00019505,2]
[359642549,1746211831522,-200.0,0.00019506,2]
[359642550,1746211831532,-150.0,0.00019507,2]
[359642551,1746211831541,-200.0,0.00019508,2]
[359642552,1746211831551,-174.85728648,0.00019508,2]
[359642553,1746211831560,-150.0,0.00019514,2]
[359642554,1746211831570,-150.0,0.00019523,2]
[359642555,1746211831580,-150.0,0.00019523,2]
[359642556,1746211831590,-150.0,0.00019524,2]
[359642557,1746211831599,-175.93758499,0.00019525,2]
[359642558,1746211831608,-150.0,0.00019525,2]
[359642559,1746211831617,-15.80862351,0.00019528,2]
[359642560,1746211831626,-150.0,0.0001953,2]
[359642561,1746211831635,-1200.0,0.00019531,2]
[359642562,1746211831645,-300.0,0.00019531,2]
[359642563,1746211831654,-300.0,0.00019531,2]
[359642564,1746211831663,-5883.42333207,0.00019532,2]
[359642565,1746211831684,-605.7001952,0.00019532,2]
[359642693,1746211837561,-3303.16733092,0.00019532,2]
[359642694,1746211837572,-4152.76677269,0.00019532,2]
[359642695,1746211837583,-3895.83733095,0.00019532,2]
[359642696,1746211837718,-19120.51596376,0.00019532,2]
[359642722,1746211840280,-782.76694773,0.00019532,2]
[359642723,1746211840292,-427.55717266,0.00019532,2]
[359642724,1746211840303,-976.1692821,0.00019532,2]
[359642741,1746211842738,-19518.78975325,0.00019532,2]
[359642744,1746211845500,-11351.27904476,0.00019532,2]
[359642745,1746211845510,-150.0,0.00019533,2]
[359642746,1746211845520,-150.0,0.00019545,2]
[359642747,1746211845533,-150.0,0.0001955,2]
[359642748,1746211845543,-150.0,0.00019552,2]
[359642749,1746211845552,-150.0,0.00019558,2]
[359642750,1746211845562,-150.0,0.00019565,2]
[359642751,1746211845571,-1000.0,0.00019567,2]
[359642752,1746211845581,-150.0,0.00019567,2]
[359642753,1746211845591,-150.0,0.0001957,2]
[359642754,1746211845601,-150.0,0.00019571,2]
[359642755,1746211845611,-150.0,0.00019578,2]
[359642756,1746211845620,-150.0,0.0001958,2]
[359642757,1746211845631,-150.0,0.00019581,2]
[359642758,1746211845640,-150.0,0.00019585,2]
[359642759,1746211845649,-150.0,0.00019588,2]
[359642760,1746211845658,-233.37170204,0.0001959,2]
[359642761,1746211845668,-150.0,0.00019591,2]
[359642762,1746211845677,-150.0,0.00019591,2]
[359642763,1746211845686,-150.0,0.00019592,2]
[359642764,1746211845700,-150.0,0.00019595,2]
[359642765,1746211845709,-150.0,0.00019596,2]
[359642766,1746211845719,-150.0,0.00019597,2]
[359642767,1746211845728,-5820.40992628,0.000196,2]
[359642777,1746211859182,1468.7133299,0.00018685,2]
[359642778,1746211859204,10000.0,0.00018685,2]
[359642779,1746211859225,10000.0,0.00018685,2]
[359642780,1746211859247,2431.2866701,0.00018685,2]
[359642782,1746211920849,150.0,0.0001947,2]
[359642783,1746211920951,150.0,0.00019468,2]
[359642784,1746211920995,150.0,0.00019495,2]
[359642785,1746211921092,150.0,0.0001948,2]
[359642786,1746211921414,150.0,0.00019471,2]
[359642787,1746211959634,4411.45,0.00018826,2]
[359642788,1746211980886,250.0,0.00018676,7]
[359642789,1746212034532,150.0,0.0001948,2]
[359642790,1746212040649,150.0,0.00019472,2]
[359642791,1746212040853,150.0,0.00019459,2]
[359642792,1746212040957,150.0,0.00019464,2]
[359642793,1746212071508,165.29,0.00019225,2]
[359642794,1746212090166,307.73,0.00018676,2]
[359642795,1746212100953,150.0,0.00019462,2]
[359642796,1746212101082,150.0,0.00019463,2]
[359642797,1746212106207,1034.2433299,0.00019,2]
[359642798,1746212106229,2539.4266701,0.00019,2]
[359642799,1746212107581,250.0,0.00018666,2]
[359642800,1746212168928,2588.0,0.0002,5]
[359642801,1746212230454,156.55,0.00018663,2]
[359642802,1746212281906,250.0,0.00017,2]
[359642803,1746212282923,188.66,0.00018676,2]
[359642804,1746212282951,300.0,0.00019,2]
[359642805,1746212283465,188.66,0.00018723,2]
[359642806,1746212283516,188.66,0.0001877,2]
[359642807,1746212304488,2471.98,0.00018662,2]
[359642808,1746212337730,1546.11,0.00018676,2]
[359642809,1746212377576,1919.9533299,0.00019414,2]
[359642810,1746212377597,657.3220291,0.00019414,2]
[359642814,1746212471610,621.00956948,0.00019495,2]
[359642815,1746212471644,188.73519959,0.00019495,2]
[359642816,1746212471696,621.00956948,0.00019495,2]
[359642819,1746212684494,748.18,0.00016754,2]
[359642820,1746212684725,748.18,0.00019018,2]
[359642821,1746212706108,4378.51,0.00019,2]
[359642822,1746212772440,621.00956948,0.00019495,2]
[359642823,1746212772470,188.7351996,0.00019495,2]
[359642824,1746212773572,310.50478474,0.00019495,2]
[359642825,1746212774366,155.25239237,0.00019495,2]
[359642826,1746212775258,155.25239238,0.00019495,2]
[359642827,1746212896219,606.29929378,0.00018687,2]
[359642828,1746212896241,393.70070622,0.00018687,2]
[359642829,1746212925717,974.41,0.00018687,2]
[359642830,1746212982182,250.0,0.000187,7]
[359642834,1746213031829,-200.0,0.00019518,2]
[359642835,1746213031841,-100.0,0.00019565,2]
[359642963,1746213037612,-100.0,0.00019565,2]
[359642964,1746213037621,-1150.0283589,0.00019581,2]
[359642965,1746213037632,-849.9716411,0.00019581,2]
[359642966,1746213037642,-200.0,0.00019581,2]
[359642967,1746213037652,-191.73394573,0.00019599,2]
[359642968,1746213037770,-108.26605427,0.00019599,2]
[359642969,1746213037779,-1200.0,0.00019599,2]
[359642970,1746213037788,-300.0,0.00019599,2]
[359642971,1746213037797,-7969.79467141,0.000196,2]
[359642984,1746213039972,-9408.46084466,0.000196,2]
[359642985,1746213039982,-2500.0,0.00019624,2]
[359642986,1746213039991,-1000.0,0.00019624,2]
[359642987,1746213040002,-1407.6815,0.00019624,2]
[359642988,1746213040012,-4612.86681392,0.00019624,2]
[359642989,1746213040021,-349.62158758,0.00019624,2]
[359642990,1746213040030,-3310.44949515,0.00019624,2]
[359642991,1746213040040,-225.0,0.00019625,2]
[359642992,1746213040050,-185.42258023,0.00019625,2]
[359642993,1746213040060,-349.62158758,0.00019631,2]
[359642994,1746213040070,-46560.88627441,0.00019634,2]
[359642995,1746213040084,-1986.5085,0.00019637,2]
[359642996,1746213040093,-349.62158758,0.00019637,2]
[359642997,1746213040103,-168.4286354,0.00019638,2]
[359642998,1746213040113,-4612.8668139,0.00019655,2]
[359642999,1746213040122,-283.66463137,0.00019684,2]
[359643000,1746213040131,-4612.8668139,0.00019685,2]
[359643001,1746213040140,-1000.0,0.000197,2]
[359643002,1746213040150,-1000.0,0.000197,2]
[359643003,1746213040159,-1040.0,0.000197,2]
[359643004,1746213040168,-1000.0,0.000197,2]
[359643005,1746213040178,-1000.0,0.000197,2]
[359643006,1746213040187,-6591.18078243,0.00019704,2]
[359643007,1746213040197,-150.0,0.00019712,2]
[359643008,1746213040206,-500.0,0.00019714,2]
[359643009,1746213040215,-500.0,0.00019714,2]
[359643010,1746213040224,-561.15486583,0.00019714,2]
[359643011,1746213040234,-150.0,0.00019715,2]
[359643012,1746213040243,-4612.8668139,0.00019716,2]
[359643013,1746213040253,-185.42258022,0.00019717,2]
[359643014,1746213040262,-450.0,0.00019723,2]
[359643015,1746213040272,-150.0,0.00019723,2]
[359643016,1746213040282,-450.0,0.00019723,2]
[359643017,1746213040291,-450.0,0.00019723,2]
[359643018,1746213040301,-450.0,0.00019723,2]
[359643019,1746213040310,-489.83,0.00019723,2]
[359643020,1746213040319,-450.0,0.00019723,2]
[359643021,1746213040329,-450.0,0.00019723,2]
[359643022,1746213040339,-450.0,0.00019723,2]
[359643023,1746213040348,-441.5928494,0.00019723,2]
[359643024,1746213040358,-469.43,0.00019723,2]
[359643025,1746213040367,-450.0,0.00019723,2]
[359643026,1746213040377,-493.08,0.00019723,2]
[359643027,1746213040386,-450.0,0.00019723,2]
[359643028,1746213040395,-624.75,0.00019723,2]
[359643029,1746213040405,-450.0,0.00019723,2]
[359643030,1746213040414,-483.92,0.00019723,2]
[359643031,1746213040424,-450.0,0.00019723,2]
[359643032,1746213040434,-450.0,0.00019723,2]
[359643033,1746213040443,-450.0,0.00019723,2]
[359643034,1746213040453,-5405.09,0.00019723,2]
[359643035,1746213040462,-450.0,0.00019723,2]
[359643036,1746213040472,-481.31,0.00019723,2]
[359643037,1746213040482,-595.89797231,0.00019723,2]
[359643038,1746213040492,-565.53,0.00019723,2]
[359643039,1746213040501,-1096.66,0.00019723,2]
[359643040,1746213040510,-500.08,0.00019723,2]
[359643041,1746213040519,-450.0,0.00019723,2]
[359643042,1746213040529,-450.0,0.00019723,2]
[359643043,1746213040538,-450.0,0.00019723,2]
[359643044,1746213040547,-380.01635004,0.00019723,2]
[359643045,1746213040557,-450.0,0.00019723,2]
[359643046,1746213040566,-450.0,0.00019723,2]
[359643047,1746213040575,-565.663878,0.00019723,2]
[359643048,1746213040584,-450.0,0.00019723,2]
[359643049,1746213040594,-520.89342385,0.00019723,2]
[359643050,1746213040604,-450.0,0.00019723,2]
[359643051,1746213040615,-259.59690718,0.00019724,2]
[359643052,1746213040624,-47375.67968823,0.00019724,2]
[359643053,1746213040642,-367.96576028,0.00019724,2]
[359643054,1746213040998,-329478.92580093,0.00019724,2]
[359643055,1746213041007,-450.0,0.00019724,2]
[359643056,1746213041016,-450.0,0.00019724,2]
[359643057,1746213041025,-450.0,0.00019724,2]
[359643058,1746213041034,-450.0,0.00019724,2]
[359643059,1746213041043,-450.0,0.00019724,2]
[359643060,1746213041052,-450.0,0.00019724,2]
[359643061,1746213041062,-450.0,0.00019724,2]
[359643062,1746213041075,-450.0,0.00019724,2]
[359643063,1746213041084,-450.0,0.00019724,2]
[359643064,1746213041093,-467.32,0.00019724,2]
[359643065,1746213041103,-577.72,0.00019724,2]
[359643066,1746213041112,-450.0,0.00019724,2]
[359643067,1746213041123,-450.0,0.00019724,2]
[359643068,1746213041132,-450.0,0.00019724,2]
[359643069,1746213041141,-450.0,0.00019724,2]
[359643070,1746213041152,-450.0,0.00019724,2]
[359643071,1746213041162,-450.0,0.00019724,2]
[359643072,1746213041171,-450.0,0.00019724,2]
[359643073,1746213041180,-450.0,0.00019724,2]
[359643074,1746213041189,-450.0,0.00019724,2]
[359643075,1746213041198,-240.40273022,0.00019724,2]
[359643076,1746213041208,-450.0,0.00019724,2]
[359643077,1746213041217,-393.38565678,0.00019724,2]
[359643078,1746213041226,-450.0,0.00019724,2]
[359643079,1746213041235,-450.0,0.00019724,2]
[359643080,1746213041244,-450.0,0.00019724,2]
[359643081,1746213041253,-450.0,0.00019724,2]
[359643082,1746213041263,-450.0,0.00019724,2]
[359643083,1746213041272,-450.0,0.00019724,2]
[359643084,1746213041282,-450.0,0.00019724,2]
[359643085,1746213041522,-450.0,0.00019724,2]
[359643086,1746213041533,-450.0,0.00019724,2]
[359643087,1746213041544,-450.0,0.00019724,2]
[359643088,1746213041553,-696.51,0.00019724,2]
[359643089,1746213041563,-450.0,0.00019724,2]
[359643090,1746213041573,-450.0,0.00019724,2]
[359643091,1746213041582,-250.0,0.00019724,2]
[359643092,1746213041592,-450.0,0.00019724,2]
[359643093,1746213041602,-450.0,0.00019724,2]
[359643094,1746213041612,-450.0,0.00019724,2]
[359643095,1746213041621,-450.0,0.00019724,2]
[359643096,1746213041631,-450.0,0.00019724,2]
[359643097,1746213041640,-450.0,0.00019724,2]
[359643098,1746213041653,-450.0,0.00019724,2]
[359643099,1746213041663,-450.0,0.00019724,2]
[359643100,1746213041672,-450.0,0.00019724,2]
[359643101,1746213041681,-450.0,0.00019724,2]
[359643102,1746213041691,-450.0,0.00019724,2]
[359643103,1746213041700,-450.0,0.00019724,2]
[359643104,1746213041709,-450.0,0.00019724,2]
[359643105,1746213041719,-450.0,0.00019724,2]
[359643106,1746213041728,-450.0,0.00019724,2]
[359643107,1746213041738,-450.0,0.00019724,2]
[359643108,1746213041747,-450.0,0.00019724,2]
[359643109,1746213041757,-450.0,0.00019724,2]
[359643110,1746213041770,-478.81,0.00019724,2]
[359643111,1746213041780,-450.0,0.00019724,2]
[359643112,1746213041789,-450.0,0.00019724,2]
[359643113,1746213041799,-984.3,0.00019724,2]
[359643114,1746213041808,-408.15101168,0.00019724,2]
[359643115,1746213041817,-450.0,0.00019724,2]
[359643116,1746213041827,-450.0,0.00019724,2]
[359643117,1746213041836,-754.6,0.00019724,2]
[359643118,1746213041846,-450.0,0.00019724,2]
[359643119,1746213041856,-506.49,0.00019724,2]
[359643120,1746213041865,-450.0,0.00019724,2]